bitfinex-derivatives/quotes_BTCF0:USTF0_20230701
["timestamp","ask_amount","ask_price","bid_price","bid_amount"]
[1688199044425,1.83738398,30488.0,30487.0,0.3983711]
[1688199045131,1.83738398,30488.0,30487.0,0.38014141]
[1688199045326,2.11706296,30488.0,30487.0,0.36129196]
[1688199045628,1.82162776,30488.0,30487.0,0.36129196]
[1688199048923,1.82162776,30488.0,30486.0,0.3155]
[1688199049123,0.81770418,30487.0,30486.0,0.3155]
[1688199049327,0.83738818,30487.0,30486.0,0.3155]
[1688199083160,0.83738818,30487.0,30483.0,0.00049202]
[1688199083161,0.03154999,30485.0,30483.0,0.00049202]
[1688199083457,0.726186,30484.0,30478.0,0.06567]
[1688199083646,0.60101344,30481.0,30478.0,0.06567]
[1688199083846,0.68300088,30481.0,30478.0,0.06567]
[1688199084253,0.68300088,30481.0,30480.0,0.039]
[1688199084254,0.45327544,30481.0,30480.0,0.039]
[1688199084455,0.79790006,30481.0,30480.0,0.019]
[1688199085458,0.79790006,30481.0,30480.0,0.039]
[1688199085657,0.45327544,30481.0,30480.0,0.039]
[1688199086246,0.45327544,30481.0,30480.0,0.058688]
[1688199087243,0.68281298,30481.0,30480.0,0.058688]
[1688199094050,2.05,30478.0,30473.0,0.019693]
[1688199094252,0.3524,30471.0,30470.0,0.0066]
[1688199094455,0.73753849,30471.0,30470.0,0.026294]
[1688199094952,0.38513849,30471.0,30470.0,0.026294]
[1688199095154,0.3546,30471.0,30470.0,0.026294]
[1688199095347,0.51837754,30471.0,30470.0,0.026294]
[1688199095549,0.51837754,30471.0,30470.0,0.06337314]
[1688199095960,0.51837754,30471.0,30470.0,0.0890416]
[1688199096558,0.51837754,30472.0,30470.0,0.42541191]
[1688199096761,0.16377754,30471.0,30470.0,0.07019215]
[1688199097055,0.16377754,30471.0,30470.0,0.40656246]
[1688199097262,0.51837754,30472.0,30470.0,0.40656246]
[1688199097463,0.51837754,30472.0,30471.0,0.74084945]
[1688199097763,0.51837754,30472.0,30471.0,0.76054345]
[1688199097971,0.3546,30472.0,30471.0,0.76054345]
[1688199098353,0.3546,30472.0,30471.0,0.77877314]
[1688199098554,0.3546,30472.0,30471.0,0.76054345]
[1688199100057,0.3546,30472.0,30471.0,0.39974345]
[1688199100663,0.48550271,30472.0,30471.0,0.39974345]
[1688199104159,0.48550271,30472.0,30471.0,0.39314345]
[1688199104555,0.48550271,30472.0,30471.0,0.39827077]
[1688199104751,0.48550271,30472.0,30471.0,0.04367077]
[1688199105356,0.48550271,30472.0,30471.0,0.02482132]
[1688199105563,0.50519671,30472.0,30471.0,0.02482132]
[1688199106664,0.50519671,30472.0,30471.0,0.04367077]
[1688199111964,0.374294,30472.0,30471.0,0.06190046]
[1688199112461,0.50519671,30472.0,30471.0,0.04367077]
[1688199115663,0.50519671,30472.0,30471.0,0.02482132]
[1688199121061,0.50519671,30472.0,30471.0,0.04367077]
[1688199121254,0.374294,30472.0,30471.0,0.04367077]
[1688199124857,0.374294,30472.0,30471.0,0.06190046]
[1688199125371,0.53807154,30472.0,30471.0,0.04367077]
[1688199126269,0.53807154,30472.0,30471.0,0.06190046]
[1688199126470,0.53807154,30472.0,30471.0,0.04367077]
[1688199127960,0.53807154,30472.0,30471.0,0.06190046]
[1688199128569,0.53807154,30472.0,30471.0,0.04367077]
[1688199129473,0.53807154,30472.0,30471.0,0.06190046]
[1688199129662,0.53812351,30472.0,30471.0,0.04367077]
[1688199130776,0.374294,30472.0,30471.0,0.04367077]
[1688199133972,0.374294,30472.0,30471.0,0.02482132]
[1688199135276,0.404844,30472.0,30471.0,0.04367077]
[1688199136992,0.404844,30472.0,30471.0,0.40447077]
[1688199139290,0.60153465,30472.0,30471.0,0.38562132]
[1688199139490,0.60153465,30472.0,30471.0,0.40447077]
[1688199139797,0.60153465,30472.0,30471.0,0.04367077]
[1688199139993,0.60153465,30472.0,30471.0,0.40447077]
[1688199140593,0.60153465,30472.0,30471.0,0.04367077]
[1688199142201,0.60153465,30472.0,30471.0,0.02482132]
[1688199144097,0.404844,30472.0,30471.0,0.02482132]
[1688199145495,0.60185157,30472.0,30471.0,0.02482132]
[1688199145994,0.60185157,30472.0,30471.0,0.04367077]
[1688199147288,0.60185157,30472.0,30471.0,0.02482132]
[1688199148795,0.60185157,30472.0,30471.0,0.38562132]
[1688199149000,0.60185157,30472.0,30471.0,0.40447077]
[1688199150701,0.58215757,30472.0,30471.0,0.40447077]
[1688199151199,0.58215757,30472.0,30471.0,0.42270046]
[1688199151399,0.58215757,30472.0,30471.0,0.40447077]
[1688199152199,0.60185057,30472.0,30471.0,0.40447077]
[1688199153508,0.60185057,30472.0,30471.0,0.42270046]
[1688199153686,0.60185057,30472.0,30471.0,0.04367077]
[1688199153892,0.60185057,30472.0,30471.0,0.40447077]
[1688199154897,0.60185057,30472.0,30471.0,0.04367077]
[1688199155102,0.60185057,30472.0,30471.0,0.40447077]
[1688199156795,0.58215757,30472.0,30471.0,0.40447077]
[1688199158004,0.58215757,30472.0,30471.0,0.42270046]
[1688199158902,0.58215757,30472.0,30471.0,0.06190046]
[1688199159104,0.58215757,30472.0,30471.0,0.40447077]
[1688199162499,0.58215757,30472.0,30471.0,0.42270046]
[1688199163499,0.58215757,30472.0,30471.0,0.40447077]
[1688199164009,0.58215757,30472.0,30471.0,0.42270046]
[1688199164194,0.58215757,30472.0,30471.0,0.40447077]
[1688199164603,0.58215757,30472.0,30471.0,0.42270046]
[1688199170402,0.58215757,30472.0,30471.0,0.40447077]
[1688199170910,0.58215757,30472.0,30471.0,0.42270046]
[1688199171105,0.58215757,30472.0,30471.0,0.40447077]
[1688199172010,0.58215757,30472.0,30471.0,0.42270046]
[1688199172607,0.38515,30472.0,30471.0,0.42270046]
[1688199177107,0.00049228,30474.0,30471.0,0.42270046]
[1688199177414,0.00049228,30474.0,30473.0,0.3608]
[1688199177602,0.35509228,30474.0,30473.0,0.380492]
[1688199177803,0.38563939,30474.0,30473.0,0.38560615]
[1688199178006,0.38563939,30474.0,30473.0,0.42268529]
[1688199178199,0.38563939,30474.0,30473.0,0.72438529]
[1688199180700,0.38563939,30474.0,30473.0,0.7061556]
[1688199181007,0.38563939,30474.0,30473.0,0.72438529]
[1688199183515,0.38563939,30474.0,30473.0,0.42268529]
[1688199184815,0.38543939,30474.0,30473.0,0.77728529]
[1688199187617,0.38543939,30474.0,30473.0,0.41648529]
[1688199187815,0.38543939,30474.0,30473.0,0.77728529]
[1688199189313,0.38543939,30474.0,30473.0,0.7590556]
[1688199190020,0.38543939,30474.0,30473.0,0.77728529]
[1688199194826,0.38563939,30474.0,30473.0,0.77728529]
[1688199199224,0.40533139,30474.0,30473.0,0.77728529]
[1688199199419,0.38563939,30474.0,30473.0,0.77728529]
[1688199204024,0.38563939,30474.0,30473.0,0.41648529]
[1688199204234,0.38563939,30474.0,30473.0,0.77728529]
[1688199218739,0.58264696,30474.0,30473.0,0.77728529]
[1688199219638,0.58264696,30474.0,30473.0,0.41648529]
[1688199219843,0.58264696,30474.0,30473.0,0.74020615]
[1688199220142,0.60233996,30474.0,30473.0,0.74020615]
[1688199221443,0.60233996,30474.0,30473.0,0.7590556]
[1688199222533,0.60233996,30474.0,30473.0,0.74020615]
[1688199222732,0.45285328,30474.0,30472.0,0.049231]
[1688199222943,0.74487087,30473.0,30472.0,0.049231]
[1688199223137,0.76456387,30473.0,30471.0,0.049236]
[1688199223447,0.331893,30473.0,30472.0,0.019693]
[1688199223631,0.76456885,30473.0,30472.0,0.019693]
[1688199224630,0.76456885,30473.0,30472.0,0.02351991]
[1688199226545,0.71704442,30473.0,30472.0,0.02351991]
[1688199227342,0.76456892,30473.0,30472.0,0.02351991]
[1688199228551,0.71704442,30473.0,30472.0,0.02351991]
[1688199228940,0.91392277,30473.0,30472.0,0.02351991]
[1688199230645,0.91392277,30473.0,30472.0,0.04236936]
[1688199233050,0.91392277,30473.0,30472.0,0.02351991]
[1688199236844,0.89422977,30473.0,30472.0,0.02351991]
[1688199237544,0.91392277,30473.0,30472.0,0.02351991]
[1688199237953,0.94023515,30473.0,30472.0,0.02351991]
[1688199238254,0.7433568,30473.0,30472.0,0.02351991]
[1688199238553,0.94023515,30473.0,30472.0,0.02351991]
[1688199251463,0.94019741,30473.0,30472.0,0.02351991]
[1688199251667,0.7433568,30473.0,30472.0,0.02351991]
[1688199253086,0.79088183,30473.0,30472.0,0.02351991]
[1688199254688,0.79088192,30473.0,30472.0,0.02351991]
[1688199254882,0.7433568,30473.0,30472.0,0.02351991]
[1688199255893,0.79088216,30473.0,30472.0,0.02351991]
[1688199256377,1.02050547,30473.0,30472.0,0.02351991]
[1688199256577,0.79088216,30473.0,30472.0,0.02351991]
[1688199256879,0.81088216,30473.0,30472.0,0.019693]
[1688199257382,1.18448216,30473.0,30470.0,0.02566846]
[1688199257590,1.0673,30471.0,30469.0,0.019697]
[1688199257780,0.92397848,30470.0,30469.0,0.019697]
[1688199260092,0.92397848,30470.0,30469.0,0.02308226]
[1688199260475,0.72714742,30470.0,30469.0,0.02308226]
[1688199260783,0.92397848,30470.0,30469.0,0.02308226]
[1688199261286,0.72714742,30470.0,30469.0,0.02308226]
[1688199263789,0.92397848,30470.0,30469.0,0.02308226]
[1688199264484,0.72714742,30470.0,30469.0,0.02308226]
[1688199264688,0.92397848,30470.0,30469.0,0.02308226]
[1688199266390,0.72714742,30470.0,30469.0,0.02308226]
[1688199269693,0.92397848,30470.0,30469.0,0.02308226]
[1688199269894,0.72714742,30470.0,30469.0,0.02308226]
[1688199270190,0.40464742,30470.0,30469.0,0.02308226]
[1688199270380,0.38495142,30470.0,30469.0,0.02308226]
[1688199271587,0.40464742,30470.0,30469.0,0.02308226]
[1688199274491,0.40464742,30470.0,30469.0,0.02678117]
[1688199277896,0.40464742,30470.0,30469.0,0.06386031]
[1688199278288,0.40464742,30470.0,30469.0,0.04563062]
[1688199279796,0.40464742,30470.0,30469.0,0.02678117]
[1688199281297,0.38495142,30470.0,30469.0,0.02678117]
[1688199281595,0.38495142,30470.0,30469.0,0.41846031]
[1688199281596,0.3546,30470.0,30469.0,0.41846031]
[1688199281892,0.3546,30470.0,30469.0,0.77926031]
[1688199284804,0.3544,30470.0,30469.0,0.40643062]
[1688199284988,0.3544,30470.0,30469.0,0.42466031]
[1688199285185,0.38495207,30470.0,30469.0,0.42466031]
[1688199286295,0.38495207,30470.0,30469.0,0.38758117]
[1688199286489,0.40464807,30470.0,30469.0,0.38758117]
[1688199287597,0.40464807,30470.0,30469.0,0.40581086]
[1688199287795,0.40464807,30470.0,30469.0,0.38758117]
[1688199288199,0.40464807,30470.0,30469.0,0.40643062]
[1688199288599,0.40464807,30470.0,30469.0,0.42466031]
[1688199290693,0.38495207,30470.0,30469.0,0.40643062]
[1688199290895,0.38495207,30470.0,30469.0,0.04563062]
[1688199290896,0.40464907,30470.0,30469.0,0.04563062]
[1688199291104,0.40464807,30470.0,30469.0,0.04563062]
[1688199291300,0.40464807,30470.0,30469.0,0.06386031]
[1688199291800,0.40464807,30470.0,30469.0,0.04563062]
[1688199292898,0.40464807,30470.0,30469.0,0.02678117]
[1688199294605,0.40464807,30470.0,30469.0,0.04563062]
[1688199294798,0.38495207,30470.0,30469.0,0.42466031]
[1688199301810,0.03055207,30470.0,30469.0,0.77926031]
[1688199302112,0.55143106,30472.0,30469.0,0.77926031]
[1688199302407,0.55143106,30472.0,30471.0,0.374295]
[1688199302612,0.58198161,30472.0,30471.0,0.374295]
[1688199302807,0.58198161,30472.0,30471.0,0.3813803]
[1688199303015,0.58198161,30472.0,30471.0,0.41845944]
[1688199303208,0.38515055,30472.0,30471.0,0.41845944]
[1688199303615,0.38515055,30472.0,30471.0,0.40022975]
[1688199303914,0.58198161,30472.0,30471.0,0.40022975]
[1688199304699,0.57898161,30472.0,30471.0,0.04562975]
[1688199304897,0.57898161,30472.0,30471.0,0.06385944]
[1688199305102,0.57898161,30472.0,30471.0,0.04562975]
[1688199306516,0.57898161,30472.0,30471.0,0.39525944]
[1688199306720,0.38215055,30472.0,30471.0,0.39525944]
[1688199307616,0.40184555,30472.0,30471.0,0.39525944]
[1688199308514,0.40184555,30472.0,30471.0,0.37702975]
[1688199309616,0.40184555,30472.0,30471.0,0.39525944]
[1688199309817,0.38215055,30472.0,30471.0,0.39525944]
[1688199311907,0.40184455,30472.0,30471.0,0.39525944]
[1688199312114,0.38215055,30472.0,30471.0,0.39525944]
[1688199313119,0.38215055,30472.0,30471.0,0.37702975]
[1688199313506,0.38215055,30472.0,30471.0,0.39525944]
[1688199320120,0.38215055,30472.0,30471.0,0.37702975]
[1688199320314,0.38215055,30472.0,30471.0,0.39525944]
[1688199323122,0.38215055,30472.0,30471.0,0.37702975]
[1688199323523,0.38215055,30472.0,30471.0,0.39525944]
[1688199326317,0.70175055,30472.0,30471.0,0.39525944]
[1688199330927,0.70175055,30472.0,30471.0,0.75605944]
[1688199333729,0.38215055,30472.0,30471.0,0.75605944]
[1688199336129,0.38215055,30472.0,30471.0,0.73782975]
[1688199336325,0.38215055,30472.0,30471.0,0.40642975]
[1688199336727,0.57898161,30472.0,30471.0,0.42465944]
[1688199336940,0.59867561,30472.0,30471.0,0.3875803]
[1688199338826,0.59867561,30472.0,30471.0,0.42465944]
[1688199339541,0.59867561,30472.0,30471.0,0.40642975]
[1688199340236,0.59867561,30472.0,30471.0,0.42465944]
[1688199340441,0.59867561,30472.0,30471.0,0.40642975]
[1688199341827,0.57898161,30472.0,30471.0,0.40642975]
[1688199342033,0.59867561,30472.0,30471.0,0.3875803]
[1688199342534,0.40184455,30472.0,30471.0,0.3875803]
[1688199343835,0.44937037,30472.0,30471.0,0.0267803]
[1688199344340,1.03980464,30472.0,30471.0,0.0267803]
[1688199346236,0.67900464,30472.0,30471.0,0.0267803]
[1688199346423,1.03980464,30472.0,30471.0,0.0267803]
[1688199348632,0.81017037,30472.0,30471.0,0.0267803]
[1688199364749,0.44937037,30472.0,30471.0,0.0267803]
[1688199364956,0.81017037,30472.0,30471.0,0.0267803]
[1688199367857,1.03980464,30472.0,30471.0,0.0267803]
[1688199369857,1.03980464,30472.0,30471.0,0.0070853]
[1688199370159,1.03980464,30472.0,30469.0,0.387487]
[1688199370361,0.55149635,30470.0,30469.0,0.387487]
[1688199370664,0.6017439,30470.0,30469.0,0.387487]
[1688199372066,0.45237786,30470.0,30468.0,0.07571709]
[1688199372246,0.5987369,30469.0,30468.0,0.07571709]
[1688199374347,1.03981435,30469.0,30468.0,0.019698]
[1688199374757,1.39441435,30469.0,30468.0,0.019698]
[1688199375061,1.16478008,30469.0,30468.0,0.019698]
[1688199376450,1.39441435,30469.0,30468.0,0.019698]
[1688199376653,1.16478008,30469.0,30467.0,0.00049228]
[1688199376852,0.58178199,30468.0,30467.0,0.00049228]
[1688199377052,0.60147999,30468.0,30467.0,0.00706816]
[1688199377260,0.90787999,30468.0,30467.0,0.00706816]
[1688199378049,0.90787999,30468.0,30467.0,0.02676616]
[1688199382359,1.26867999,30468.0,30467.0,0.02676616]
[1688199384758,1.07184855,30468.0,30467.0,0.02676616]
[1688199386363,1.07184855,30468.0,30467.0,0.35956616]
[1688199393567,1.26867999,30468.0,30467.0,0.35956616]
[1688199394270,1.26867999,30468.0,30467.0,0.02676616]
[1688199397579,1.07184855,30468.0,30467.0,0.02676616]
[1688199399373,1.26867999,30468.0,30467.0,0.02676616]
[1688199399967,1.07184855,30468.0,30467.0,0.02676616]
[1688199402061,0.71104855,30468.0,30467.0,0.02676616]
[1688199404381,0.90787999,30468.0,30467.0,0.02676616]
[1688199404584,0.71104855,30468.0,30467.0,0.02676616]
[1688199408878,0.40464855,30468.0,30467.0,0.02676616]
[1688199409184,0.60147999,30468.0,30467.0,0.02676616]
[1688199412990,0.45218171,30468.0,30467.0,0.02676616]
[1688199414779,0.68181598,30468.0,30467.0,0.02676616]
[1688199416791,0.45218171,30468.0,30467.0,0.02676616]
[1688199416991,0.68181598,30468.0,30467.0,0.02676616]
[1688199423609,1.04261598,30468.0,30467.0,0.02676616]
[1688199430813,0.68181598,30468.0,30467.0,0.02676616]
[1688199455118,1.04261598,30468.0,30467.0,0.02676616]
[1688199455427,1.04261598,30468.0,30467.0,0.00706816]
[1688199455428,1.14343434,30468.0,30467.0,0.00706816]
[1688199455723,0.88089098,30468.0,30467.0,0.00049228]
[1688199456525,1.1435655,30468.0,30467.0,0.00049228]
[1688199460327,1.07565623,30468.0,30467.0,0.02019128]
[1688199462342,0.81298171,30468.0,30467.0,0.02019128]
[1688199466845,0.45218171,30468.0,30467.0,0.02019128]
[1688199467040,0.81298171,30468.0,30467.0,0.02019128]
[1688199471749,0.81298171,30468.0,30467.0,0.02743299]
[1688199476855,0.45218171,30468.0,30467.0,0.02743299]
[1688199477045,0.81298171,30468.0,30467.0,0.02743299]
[1688199480848,1.04272556,30468.0,30467.0,0.02743299]
[1688199481153,0.81298171,30468.0,30467.0,0.02743299]
[1688199489365,0.45218171,30468.0,30467.0,0.02743299]
[1688199489565,0.81298171,30468.0,30467.0,0.02743299]
[1688199492555,1.07565623,30468.0,30467.0,0.02743299]
[1688199494465,1.14356579,30468.0,30467.0,0.02743299]
[1688199495568,1.07565623,30468.0,30467.0,0.02743299]
[1688199496168,0.81298171,30468.0,30467.0,0.02743299]
[1688199496466,1.07565623,30468.0,30467.0,0.02743299]
[1688199498469,1.14356457,30468.0,30467.0,0.02743299]
[1688199499167,1.14356458,30468.0,30467.0,0.02743299]
[1688199499373,1.21147292,30468.0,30467.0,0.02743299]
[1688199505264,0.85067292,30468.0,30467.0,0.02743299]
[1688199505464,1.21147292,30468.0,30467.0,0.02743299]
[1688199506067,0.85067292,30468.0,30467.0,0.02743299]
[1688199506263,1.21147292,30468.0,30467.0,0.02743299]
[1688199506468,1.21147292,30468.0,30467.0,0.02019128]
[1688199506677,1.21147292,30468.0,30467.0,0.02743837]
[1688199506976,0.85067292,30468.0,30467.0,0.02743837]
[1688199507177,0.85067292,30468.0,30467.0,0.02019128]
[1688199507380,1.21147292,30468.0,30467.0,0.02019128]
[1688199507778,1.21147292,30468.0,30467.0,0.02743821]
[1688199509680,0.85067292,30468.0,30467.0,0.02743821]
[1688199509977,1.21147292,30468.0,30467.0,0.02019128]
[1688199510179,1.21147292,30468.0,30467.0,0.0274378]
[1688199514282,0.9487984,30468.0,30467.0,0.0274378]
[1688199515077,1.21156175,30468.0,30467.0,0.0274378]
[1688199515283,0.9487984,30468.0,30467.0,0.0274378]
[1688199515585,1.21155835,30468.0,30467.0,0.0274378]
[1688199516380,0.9487984,30468.0,30467.0,0.0077388]
[1688199517986,0.9487984,30468.0,30467.0,0.0274378]
[1688199519979,1.11079358,30468.0,30467.0,0.0274378]
[1688199521189,0.94880055,30468.0,30467.0,0.0274378]
[1688199525893,0.94880055,30468.0,30467.0,0.02019128]
[1688199526389,0.94880055,30468.0,30467.0,0.02744958]
[1688199529293,0.94880055,30468.0,30467.0,0.02019128]
[1688199531895,1.94880055,30468.0,30467.0,0.02019128]
[1688199535596,1.8808922,30468.0,30467.0,0.02019128]
[1688199536493,1.8778922,30468.0,30467.0,0.02019128]
[1688199543805,0.8778922,30468.0,30467.0,0.02019128]
[1688199545506,0.8778922,30468.0,30467.0,0.33519128]
[1688199552423,0.8778922,30468.0,30467.0,0.02019128]
[1688199553008,1.17324786,30468.0,30467.0,0.02019128]
[1688199554824,1.52564786,30468.0,30467.0,0.02019128]
[1688199556626,1.88644786,30468.0,30467.0,0.00049228]
[1688199557825,1.16484786,30468.0,30467.0,0.00049228]
[1688199558221,1.88644786,30468.0,30467.0,0.00049228]
[1688199570533,1.88644786,30468.0,30464.0,0.336301]
[1688199570829,0.94505266,30465.0,30464.0,0.336301]
[1688199571137,1.03983637,30465.0,30464.0,0.336301]
[1688199577636,0.80998371,30465.0,30464.0,0.336301]
[1688199580937,0.80998371,30465.0,30463.0,0.019701]
[1688199581139,1.34473656,30464.0,30463.0,0.019702]
[1688199581332,1.34473656,30464.0,30459.0,0.019704]
[1688199581333,1.1345926,30464.0,30459.0,0.019704]
[1688199581533,1.07,30460.0,30459.0,0.045974]
[1688199581737,1.089704,30460.0,30459.0,0.019704]
[1688199581938,1.089704,30460.0,30459.0,0.03166908]
[1688199581939,1.31412689,30460.0,30459.0,0.03166908]
[1688199582129,1.31412689,30460.0,30459.0,0.019704]
[1688199584338,1.11725455,30460.0,30459.0,0.019704]
[1688199584549,1.31412689,30460.0,30459.0,0.019704]
[1688199584738,0.95952689,30460.0,30459.0,0.019704]
[1688199584935,0.76265455,30460.0,30459.0,0.03166865]
[1688199594444,0.78958188,30460.0,30459.0,0.03166865]
[1688199594836,0.42878188,30460.0,30459.0,0.03166865]
[1688199595044,0.78958188,30460.0,30459.0,0.03166865]
[1688199595743,0.78958188,30460.0,30459.0,0.0505181]
[1688199596936,0.78958188,30460.0,30459.0,0.03166865]
[1688199600346,0.38215055,30460.0,30459.0,0.03166865]
[1688199600536,0.3546,30460.0,30459.0,0.0505181]
[1688199600740,0.55767234,30463.0,30459.0,0.4051181]
[1688199600741,0.3546,30461.0,30459.0,0.4051181]
[1688199600948,0.3546,30461.0,30460.0,0.37102969]
[1688199601149,0.38516247,30461.0,30460.0,0.40958214]
[1688199602147,0.38516247,30461.0,30460.0,0.39135245]
[1688199602740,0.40486547,30461.0,30460.0,0.39135245]
[1688199603652,0.40486547,30461.0,30460.0,0.40958214]
[1688199604052,0.40486547,30461.0,30460.0,0.39135245]
[1688199604845,0.40486547,30461.0,30460.0,0.03855245]
[1688199605346,0.38516247,30461.0,30460.0,0.05678214]
[1688199605548,0.3546,30461.0,30460.0,0.41758214]
[1688199606052,0.3546,30461.0,30460.0,0.42451646]
[1688199606254,0.3546,30461.0,30460.0,0.40628677]
[1688199606437,0.3546,30461.0,30460.0,0.77911646]
[1688199606641,0.40976585,30461.0,30460.0,0.77911646]
[1688199606844,0.16395687,30461.0,30460.0,0.77911646]
[1688199608251,0.16395687,30461.0,30460.0,0.77731646]
[1688199608252,0.51855687,30461.0,30460.0,0.77731646]
[1688199612258,0.51855687,30461.0,30460.0,0.41651646]
[1688199612456,0.51855687,30461.0,30460.0,0.77731646]
[1688199624767,0.51835687,30461.0,30460.0,0.77911646]
[1688199627969,0.19006824,30461.0,30460.0,0.77911646]
[1688199628464,0.18618061,30464.0,30460.0,0.38123732]
[1688199628665,0.18618061,30464.0,30460.0,0.74203732]
[1688199628666,0.3546,30461.0,30460.0,0.74203732]
[1688199628868,0.02632498,30461.0,30460.0,0.74203732]
[1688199629064,0.02632498,30461.0,30460.0,0.77911646]
[1688199629272,0.1303403,30465.0,30460.0,0.76026701]
[1688199629570,0.1303403,30465.0,30460.0,0.74003732]
[1688199629571,0.16090087,30465.0,30460.0,0.74003732]
[1688199629760,0.05026157,30464.0,30461.0,0.03707914]
[1688199629962,0.3546,30463.0,30462.0,0.3546]
[1688199630173,0.38516057,30463.0,30462.0,0.374302]
[1688199630463,0.05691662,30463.0,30462.0,0.41138114]
[1688199630867,0.54598452,30466.0,30463.0,0.03707914]
[1688199631068,0.049251,30465.0,30464.0,0.019701]
[1688199631368,0.3546,30465.0,30464.0,0.019701]
[1688199631565,0.89444506,30465.0,30464.0,0.05678014]
[1688199631768,0.56620869,30465.0,30464.0,0.05678014]
[1688199632161,0.23796316,30465.0,30464.0,0.05678014]
[1688199632362,0.28721416,30465.0,30464.0,0.05678014]
[1688199632665,0.40792016,30466.0,30464.0,0.019701]
[1688199632666,0.31764076,30466.0,30464.0,0.019701]
[1688199632866,1.16733332,30465.0,30464.0,0.019701]
[1688199633176,0.85879891,30465.0,30464.0,0.019701]
[1688199633359,0.85879891,30465.0,30464.0,0.05678014]
[1688199633565,0.53055338,30465.0,30464.0,0.05678014]
[1688199634063,0.20230785,30465.0,30464.0,0.05678014]
[1688199634468,0.21849546,30466.0,30464.0,0.03855045]
[1688199634672,0.21849546,30466.0,30465.0,0.03707914]
[1688199634870,0.62063417,30466.0,30465.0,0.05677914]
[1688199635071,0.78431018,30466.0,30465.0,0.05677914]
[1688199635265,0.84341018,30466.0,30465.0,0.05677914]
[1688199635573,0.51517543,30466.0,30465.0,0.05677914]
[1688199635969,0.18694068,30466.0,30465.0,0.05677914]
[1688199636370,0.733298,30467.0,30465.0,0.0197]
[1688199636575,0.90461717,30466.0,30465.0,0.0197]
[1688199636759,0.57638705,30466.0,30465.0,0.0197]
[1688199637174,0.57638705,30466.0,30465.0,0.05677914]
[1688199637470,0.2481523,30466.0,30465.0,0.05677914]
[1688199637673,0.3072523,30466.0,30465.0,0.05677914]
[1688199637878,0.73797485,30467.0,30466.0,0.03707914]
[1688199638071,1.1135573,30467.0,30466.0,0.03854945]
[1688199638264,0.7410593,30467.0,30466.0,0.03854945]
[1688199638465,0.81349906,30467.0,30466.0,0.03854945]
[1688199638670,0.48143527,30467.0,30466.0,0.03854945]
[1688199638976,0.42703976,30467.0,30466.0,0.05051102]
[1688199639166,0.36150454,30467.0,30466.0,0.06874071]
[1688199639678,0.03328056,30467.0,30466.0,0.06874071]
[1688199639876,0.52025956,30467.0,30466.0,0.06874071]
[1688199640065,0.19205264,30467.0,30466.0,0.06874071]
[1688199640371,0.25115064,30467.0,30466.0,0.06874071]
[1688199640574,0.3475707,30469.0,30466.0,0.05051102]
[1688199640765,0.09847354,30468.0,30467.0,0.03707914]
[1688199640969,0.45007354,30468.0,30467.0,0.03019097]
[1688199641167,0.1415701,30468.0,30467.0,0.04988997]
[1688199641362,0.1415701,30468.0,30467.0,0.06873942]
[1688199641569,0.20724913,30469.0,30467.0,0.03166028]
[1688199641768,0.3546,30468.0,30467.0,0.03166028]
[1688199641967,0.3746,30468.0,30467.0,0.03166028]
[1688199642177,0.394299,30468.0,30467.0,0.04988997]
[1688199642876,0.374299,30468.0,30467.0,0.06873942]
[1688199643079,0.44083803,30468.0,30467.0,0.06873942]
[1688199645080,0.06653903,30468.0,30467.0,0.42333942]
[1688199647872,0.08623703,30468.0,30467.0,0.42333942]
[1688199649080,0.06653903,30468.0,30467.0,0.42333942]
[1688199649880,0.08623703,30468.0,30467.0,0.42333942]
[1688199650084,0.34880197,30468.0,30467.0,0.42333942]
[1688199650887,0.4167113,30468.0,30467.0,0.42333942]
[1688199651986,0.08849809,30468.0,30467.0,0.42333942]
[1688199652284,0.10819609,30468.0,30467.0,0.42333942]
[1688199652492,0.20994942,30469.0,30467.0,0.42333942]
[1688199652685,0.019698,30468.0,30467.0,0.40510973]
[1688199652885,0.57557257,30470.0,30467.0,0.38626028]
[1688199653087,0.38515971,30469.0,30468.0,0.03707914]
[1688199653388,0.43440471,30469.0,30468.0,0.03854745]
[1688199653575,0.43440471,30469.0,30468.0,0.03165748]
[1688199654982,0.43440471,30469.0,30468.0,0.04988717]
[1688199656292,0.10620227,30469.0,30468.0,0.06873662]
[1688199656792,0.64154432,30470.0,30469.0,0.01822969]
[1688199657091,0.99614432,30470.0,30468.0,0.04868397]
[1688199657296,0.64154432,30470.0,30469.0,0.01195895]
[1688199657594,0.80931519,30470.0,30469.0,0.0505064]
[1688199657987,0.80931519,30470.0,30469.0,0.06873609]
[1688199658686,0.71301519,30470.0,30469.0,0.06873609]
[1688199658887,0.51394305,30470.0,30469.0,0.06873609]
[1688199659995,0.56147868,30470.0,30469.0,0.06873609]
[1688199660595,0.39911968,30470.0,30469.0,0.06873609]
[1688199661096,0.42574742,30470.0,30469.0,0.06873609]
[1688199663600,0.32874742,30470.0,30469.0,0.06873609]
[1688199664185,0.32874742,30470.0,30469.0,0.0505064]
[1688199664387,0.34844442,30470.0,30469.0,0.0505064]
[1688199664592,0.34844442,30470.0,30469.0,0.03165695]
[1688199664801,0.25144442,30470.0,30469.0,0.04988664]
[1688199665191,0.25144442,30470.0,30469.0,0.03165695]
[1688199666303,0.28200368,30470.0,30469.0,0.03165695]
[1688199667803,0.49929962,30470.0,30469.0,0.03165695]
[1688199668004,0.64530381,30470.0,30469.0,0.04988664]
[1688199669295,0.64530381,30470.0,30469.0,0.03165695]
[1688199672314,0.64530381,30470.0,30469.0,0.04988664]
[1688199672704,0.64530381,30470.0,30469.0,0.03165695]
[1688199690218,0.34991298,30470.0,30469.0,0.03165695]
[1688199690913,0.34991298,30470.0,30469.0,0.01195895]
[1688199693222,0.34991298,30470.0,30469.0,0.03165695]
[1688199699818,0.34991298,30470.0,30469.0,0.01195895]
[1688199703625,0.67798779,30470.0,30469.0,0.01195895]
[1688199705715,0.019699,30467.0,30466.0,0.0591]
[1688199705915,0.019699,30467.0,30466.0,0.39034382]
[1688199705916,1.17652878,30467.0,30466.0,0.39034382]
[1688199706420,0.88110319,30467.0,30466.0,0.39034382]
[1688199708819,0.52030319,30467.0,30466.0,0.39034382]
[1688199709022,0.88110319,30467.0,30466.0,0.39034382]
[1688199713422,1.14361625,30467.0,30466.0,0.39034382]
[1688199720936,1.12391725,30467.0,30466.0,0.39034382]
[1688199721637,1.12391725,30467.0,30466.0,0.42742296]
[1688199722041,0.76311725,30467.0,30466.0,0.42742296]
[1688199724139,0.46362993,30467.0,30466.0,0.43402296]
[1688199724342,0.26025325,30467.0,30466.0,0.78862296]
[1688199726236,0.61485325,30467.0,30466.0,0.78862296]
[1688199729032,0.53235325,30467.0,30466.0,0.78862296]
[1688199731939,0.5798898,30467.0,30466.0,0.78862296]
[1688199734234,0.4321748,30467.0,30466.0,0.78862296]
[1688199734737,0.4291748,30467.0,30466.0,0.43402296]
[1688199735647,0.4190164,30467.0,30466.0,0.43402296]
[1688199736349,0.4190164,30467.0,30466.0,0.42742296]
[1688199738248,0.4190164,30467.0,30466.0,0.78822296]